fUSD/lending_fUSD_20240917
["ID","MTS","AMOUNT","RATE_DAILY","PERIOD"]
[338352584,1726546237739,-500.0,0.00012708,2]
[338352585,1726546237749,-186.34067264,0.00012708,2]
[338352586,1726546237759,-500.0,0.00012708,2]
[338352587,1726546237769,-351.12196978,0.00012708,2]
[338352588,1726546237779,-500.0,0.00012708,2]
[338352589,1726546237788,-537.98749114,0.00012708,2]
[338352590,1726546237798,-545579.5517947,0.00012709,2]
[338352629,1726546238310,-569.5689955,0.00012709,2]
[338352631,1726546238321,-1499.92692068,0.00012709,2]
[338352768,1726546239624,-87.41803712,0.00012709,2]
[338352771,1726546239640,-619.124,0.00012709,2]
[338352773,1726546239655,-873.23,0.00012709,2]
[338352783,1726546239734,-2359.41485305,0.00012709,2]
[338353044,1726546242411,-374.72962927,0.00012709,2]
[338353352,1726546245456,-294.97499116,0.00012709,2]
[338353354,1726546245468,-8724.07526112,0.00012709,2]
[338353371,1726546245625,-4691.18203615,0.00012709,2]
[338353377,1726546245675,-300.0,0.00012709,2]
[338353432,1726546248967,175.59,0.00012289,2]
[338353433,1726546249191,175.59,0.00012309,2]
[338353434,1726546249396,175.59,0.0001233,2]
[338353435,1726546249606,175.59,0.0001235,2]
[338353436,1726546268533,1162.74,0.00012333,2]
[338353437,1726546297651,390.6,0.00012331,2]
[338353438,1726546299425,2067.0,0.00025,60]
[338353439,1726546331482,230.58,0.0001223,2]
[338353441,1726546341297,3550.46,0.00012228,2]
[338353443,1726546394527,695.18,0.00012268,2]
[338353444,1726546402294,500.0,0.00025357,120]
[338353445,1726546407205,500.0,0.00025999,120]
[338353446,1726546413035,2000.0,0.00025466,120]
[338353447,1726546440243,500.0,0.00025999,120]
[338353448,1726546443480,200.0,0.00012345,2]
[338353449,1726546454739,200.0,0.00025999,120]
[338353451,1726546541224,4835.9985,0.00012609,2]
[338353452,1726546541493,328.0,0.00012325,2]
[338353454,1726546675317,324.57,0.00010511,2]
[338353455,1726546676804,9390.34980638,0.00012609,2]
[338353457,1726546714945,250.0,0.00012263,2]
[338353458,1726546726393,195.0,0.00025999,120]
[338353459,1726546751056,250.0,0.00012303,2]
[338353460,1726546784914,157.3,0.00010959,2]
[338353461,1726546883736,463.59,0.00012263,2]
[338353486,1726546973007,2444.0784,0.00012609,2]
[338353487,1726546992172,5385.9216,0.00012609,2]
[338353488,1726547002544,500.0,0.00026,120]
[338353489,1726547007842,2000.0,0.00026,120]
[338353490,1726547033109,500.0,0.00026,120]
[338353491,1726547041386,500.0,0.00026,120]
[338353492,1726547050343,737.6,0.00012305,2]
[338353493,1726547053351,200.0,0.00026,120]
[338353494,1726547088561,282.69,0.00014,30]
[338353495,1726547104826,1050.0,0.00011,2]
[338353496,1726547117404,283.29789467,0.00011688,2]
[338353497,1726547119723,7603.51649619,9e-05,2]
[338353498,1726547125677,1009.97664361,0.00025,60]
[338353499,1726547154638,5902.82437851,6.94e-05,2]
[338353500,1726547159079,1000.0,0.00025,60]
[338353501,1726547176590,8451.31482576,0.00012609,2]
[338353504,1726547221438,320.05,0.00010524,2]
[338353506,1726547237120,250.0,0.00012405,2]
[338353507,1726547248380,300.0,0.000125,4]
[338353508,1726547250451,600.0,0.000126,4]
[338353509,1726547277462,211.66829347,0.0001,2]
[338353510,1726547277824,250.0,0.00012294,2]
[338353512,1726547312024,247.5105,0.00012609,2]
[338353513,1726547312614,7053.482741,0.00010998,2]
[338353557,1726547363982,-879.37000578,0.000127,4]
[338353578,1726547431506,-120.62999422,0.000127,4]
[338353580,1726547431516,-4898.097,0.00012709,2]
[338353581,1726547431526,-300.0,0.00012759,2]
[338353582,1726547431535,-250.0,0.0001276,2]
[338353583,1726547431545,-250.0,0.0001276,2]
[338353584,1726547431554,-250.0,0.0001276,2]
[338353585,1726547431563,-250.0,0.0001276,2]
[338353586,1726547431573,-5373.39260539,0.0001276,2]
[338353587,1726547431582,-320.05,0.00012787,2]
[338353588,1726547431591,-1300.0,0.000128,4]
[338353589,1726547431601,-8451.3148257,0.00012864,2]
[338353590,1726547431610,-250.0,0.0001287,2]
[338353591,1726547431619,-314.91205,0.0001287,2]
[338353592,1726547431628,-150.0,0.00012899,2]
[338353593,1726547431638,-219.31859095,0.000129,2]
[338353594,1726547431647,-1700.0,0.000129,4]
[338353595,1726547431657,-156.92210109,0.000129,2]
[338353596,1726547431812,-200.05798856,0.000129,2]
[338353597,1726547431825,-152.7766729,0.000129,2]
[338353598,1726547431835,-1500.0,0.00012937,2]
[338353599,1726547431845,-182.41,0.00012937,2]
[338353600,1726547431855,-500.0,0.00012973,2]
[338353601,1726547431864,-484.62631943,0.00012984,2]
[338353602,1726547431874,-888.17,0.00012984,2]
[338353603,1726547431883,-499.99,0.0001299,2]
[338353604,1726547431893,-152.9,0.0001299,2]
[338353605,1726547431903,-447.6980207,0.0001299,2]
[338353606,1726547431912,-447.6980207,0.0001299,2]
[338353607,1726547431922,-447.6980207,0.0001299,2]
[338353608,1726547431931,-272.91362485,0.00012999,2]
[338353609,1726547431942,-226.44305457,0.00012999,2]
[338353610,1726547431951,-11571.540047,0.00013,2]
[338353611,1726547431961,-15946.07746637,0.00013,2]
[338353612,1726547431981,-455082.6198367,0.00013,2]
[338353613,1726547432000,-2768.47902443,0.00013,2]
[338353614,1726547432011,-833.79793316,0.00013,2]
[338353615,1726547432023,-11046.89,0.00013,2]
[338353622,1726547437867,-1223141.27928851,0.00013,2]
[338353833,1726547440003,-15797.7060609,0.00013,2]
[338353834,1726547440015,-2566.54677904,0.00013,2]
[338353835,1726547440044,-182639.05141916,0.00013,2]
[338353836,1726547440053,-156734.8959419,0.00013,2]
[338353837,1726547440063,-294.93,0.00013,2]
[338353838,1726547440072,-3277349.41271053,0.00013,2]
[338353839,1726547440082,-151.0,0.00013,2]
[338353840,1726547440091,-151.0,0.00013,2]
[338353841,1726547440105,-151.0,0.00013,2]
[338353842,1726547440122,-355.115025,0.00013,2]
[338353843,1726547440135,-355.115025,0.00013,2]
[338353844,1726547440150,-527.284761,0.00013,2]
[338353845,1726547440167,-527.284761,0.00013,2]
[338353848,1726547440184,-4882.38255511,0.00013,2]
[338353850,1726547440199,-176.11164596,0.00013,2]
[338353853,1726547440214,-1072.17,0.000131,2]
[338353856,1726547440232,-8451.3148257,0.00013118,2]
[338353858,1726547440245,-20462.0,0.00013119,2]
[338353861,1726547440260,-219.31859092,0.00013186,2]
[338353863,1726547440276,-8644.30023552,0.00013322,2]
[338353865,1726547440293,-8451.3148257,0.00013373,2]
[338353868,1726547440310,-533.31,0.000134,2]
[338353871,1726547440322,-532.86,0.000134,2]
[338353873,1726547440336,-219.31859092,0.00013471,2]
[338353876,1726547440352,-872.0,0.0001352,2]
[338353878,1726547440366,-151.342536,0.00013627,2]
[338353881,1726547440381,-151.0,0.00013627,2]
[338353883,1726547440392,-151.0,0.00013627,2]
[338353885,1726547440407,-151.0,0.00013627,2]
[338353888,1726547440421,-151.0,0.00013627,2]
[338353890,1726547440434,-151.0,0.00013627,2]
[338353893,1726547440448,-177.888848,0.00013627,2]
[338353895,1726547440462,-177.888848,0.00013627,2]
[338353897,1726547440476,-151.0,0.00013627,2]
[338353900,1726547440491,-151.0,0.00013627,2]
[338353902,1726547440505,-151.0,0.00013627,2]
[338353905,1726547440523,-1226.630838,0.00013627,2]
[338353907,1726547440538,-1226.630838,0.00013627,2]
[338353909,1726547440552,-151.0,0.00013627,2]
[338353912,1726547440566,-151.0,0.00013627,2]
[338353914,1726547440580,-151.0,0.00013627,2]
[338353917,1726547440594,-154.001433,0.00013627,2]
[338353919,1726547440608,-151.0,0.00013627,2]
[338353922,1726547440622,-151.0,0.00013627,2]
[338353924,1726547440638,-151.0,0.00013627,2]
[338353927,1726547440652,-524.65391,0.00013627,2]
[338353929,1726547440667,-151.0,0.00013627,2]
[338353932,1726547440681,-151.0,0.00013627,2]
[338353934,1726547440695,-151.0,0.00013627,2]
[338353936,1726547440709,-256.603943,0.00013627,2]
[338353939,1726547440724,-151.0,0.00013627,2]
[338353941,1726547440736,-256.603943,0.00013627,2]
[338353943,1726547440750,-151.241369,0.00013627,2]
[338353946,1726547440765,-151.0,0.00013627,2]
[338353948,1726547440778,-151.0,0.00013627,2]
[338353951,1726547440792,-151.0,0.00013627,2]
[338353953,1726547440806,-151.0,0.00013627,2]
[338353956,1726547440820,-235.973505,0.00013627,2]
[338353958,1726547440834,-151.0,0.00013627,2]
[338353960,1726547440847,-151.0,0.00013627,2]
[338353963,1726547440862,-151.0,0.00013627,2]
[338353965,1726547440877,-152.105275,0.00013627,2]
[338353968,1726547440891,-210.981478,0.00013627,2]
[338353970,1726547440905,-210.981478,0.00013627,2]
[338353973,1726547440919,-151.0,0.00013627,2]
[338353975,1726547440933,-151.0,0.00013627,2]
[338353978,1726547440947,-151.0,0.00013627,2]
[338353980,1726547440960,-151.0,0.00013627,2]
[338353982,1726547440973,-708.50399,0.00013627,2]
[338353985,1726547440987,-708.50399,0.00013627,2]
[338353987,1726547441000,-2669.528679,0.00013627,2]
[338353990,1726547441016,-8451.3148257,0.00013627,2]
[338353992,1726547441030,-151.0,0.00013699,2]
[338353995,1726547441044,-7500.0,0.000137,2]
[338353997,1726547441058,-719.0,0.000137,2]
[338353999,1726547441071,-219.31859092,0.00013757,2]
[338354002,1726547441085,-230.58,0.00013759,2]
[338354004,1726547441098,-500.0,0.00013773,2]
[338354007,1726547441111,-151.0,0.00013782,2]
[338354009,1726547441126,-151.0,0.00013782,2]
[338354012,1726547441139,-151.0,0.00013782,2]
[338354014,1726547441153,-156.386443,0.00013782,2]
[338354016,1726547441167,-151.0,0.00013782,2]
[338354019,1726547441180,-398.937309,0.00013782,2]
[338354021,1726547441195,-398.937309,0.00013782,2]
[338354024,1726547441209,-505.219601,0.00013782,2]
[338354026,1726547441223,-505.219601,0.00013782,2]
[338354028,1726547441235,-294.044032,0.00013782,2]
[338354030,1726547441244,-294.044032,0.00013782,2]
[338354032,1726547441254,-151.0,0.00013782,2]
[338354034,1726547441267,-151.0,0.00013782,2]
[338354036,1726547441282,-151.0,0.00013782,2]
[338354038,1726547441292,-383.682655,0.00013782,2]
[338354040,1726547441301,-151.0,0.00013782,2]
[338354042,1726547441311,-383.682655,0.00013782,2]
[338354069,1726547441495,-151.0,0.00013782,2]
[338354074,1726547441610,-151.0,0.00013782,2]
[338354076,1726547441622,-355.115025,0.00013782,2]
[338354078,1726547441632,-355.115025,0.00013782,2]
[338354080,1726547441642,-527.284761,0.00013782,2]
[338354082,1726547441652,-527.284761,0.00013782,2]
[338354084,1726547441661,-295.039066,0.00013782,2]
[338354086,1726547441670,-295.039066,0.00013782,2]
[338354088,1726547441680,-1922.969,0.00013783,2]
[338354090,1726547441689,-558.945,0.00013783,2]
[338354092,1726547441698,-3470.47,0.00013783,2]
[338354094,1726547441708,-810.0,0.00013783,2]
[338354096,1726547441717,-1929.451,0.00013783,2]
[338354098,1726547441728,-251.038,0.00013783,2]
[338354100,1726547441738,-1084.804,0.00013783,2]
[338354102,1726547441749,-154.698,0.00013783,2]
[338354104,1726547441761,-1555.457,0.00013783,2]
[338354107,1726547441771,-450.438,0.00013783,2]
[338354109,1726547441781,-1269.66,0.00013783,2]
[338354111,1726547441790,-5892.821,0.00013783,2]
[338354113,1726547441800,-630.881,0.00013783,2]
[338354114,1726547441809,-1152.275,0.00013783,2]
[338354117,1726547441820,-13518.174,0.00013783,2]
[338354119,1726547441829,-463.59,0.00013796,2]
[338354121,1726547441839,-153.96794,0.00013796,2]
[338354123,1726547441848,-151.0,0.00013796,2]
[338354125,1726547441857,-524.65391,0.00013796,2]
[338354127,1726547441867,-154.95438,0.00013796,2]
[338354129,1726547441876,-151.0,0.00013796,2]
[338354131,1726547441886,-151.0,0.00013796,2]
[338354133,1726547441895,-256.603943,0.00013796,2]
[338354135,1726547441904,-151.0,0.00013796,2]
[338354137,1726547441914,-256.603943,0.00013796,2]
[338354138,1726547441922,-151.0,0.00013796,2]
[338354140,1726547441932,-151.0,0.00013796,2]
[338354142,1726547441941,-151.0,0.00013796,2]
[338354144,1726547441951,-151.0,0.00013796,2]
[338354146,1726547441960,-151.0,0.00013796,2]
[338354148,1726547441969,-151.0,0.00013796,2]
[338354150,1726547441978,-2669.528679,0.00013796,2]
[338354152,1726547441988,-151.0,0.000138,2]
[338354154,1726547441998,-151.0,0.000138,2]
[338354156,1726547442007,-260.868776,0.000138,2]
[338354158,1726547442021,-151.0,0.000138,2]
[338354160,1726547442031,-260.868776,0.000138,2]
[338354162,1726547442040,-151.0,0.000138,2]
[338354164,1726547442050,-151.0,0.000138,2]
[338354166,1726547442059,-151.0,0.000138,2]
[338354168,1726547442068,-151.0,0.000138,2]
[338354170,1726547442078,-151.0,0.000138,2]
[338354172,1726547442087,-151.0,0.000138,2]
[338354174,1726547442096,-398.937309,0.000138,2]
[338354176,1726547442105,-151.248856,0.000138,2]
[338354178,1726547442115,-398.937309,0.000138,2]
[338354180,1726547442124,-151.519597,0.000138,2]
[338354182,1726547442134,-505.219601,0.000138,2]
[338354184,1726547442144,-505.219601,0.000138,2]
[338354186,1726547442154,-294.044032,0.000138,2]
[338354189,1726547442164,-294.044032,0.000138,2]
[338354191,1726547442175,-165.342857,0.000138,2]
[338354193,1726547442184,-151.0,0.000138,2]
[338354195,1726547442194,-151.0,0.000138,2]
[338354197,1726547442204,-177.888848,0.000138,2]
[338354199,1726547442214,-177.888848,0.000138,2]
[338354201,1726547442224,-151.0,0.000138,2]
[338354203,1726547442235,-151.0,0.000138,2]
[338354205,1726547442244,-151.0,0.000138,2]
[338354207,1726547442253,-1226.630838,0.000138,2]
[338354209,1726547442264,-1226.630838,0.000138,2]
[338354211,1726547442273,-151.0,0.000138,2]
[338354213,1726547442282,-151.0,0.000138,2]
[338354215,1726547442292,-284.050207,0.000138,2]
[338354217,1726547442302,-151.0,0.000138,2]
[338354219,1726547442311,-151.0,0.000138,2]
[338354221,1726547442321,-524.65391,0.000138,2]
[338354223,1726547442332,-151.0,0.000138,2]
[338354225,1726547442342,-151.0,0.000138,2]
[338354227,1726547442352,-256.603943,0.000138,2]
[338354229,1726547442361,-151.0,0.000138,2]
[338354231,1726547442370,-256.603943,0.000138,2]
[338354233,1726547442380,-151.0,0.000138,2]
[338354235,1726547442389,-151.0,0.000138,2]
[338354237,1726547442398,-151.0,0.000138,2]
[338354239,1726547442408,-151.0,0.000138,2]
[338354241,1726547442418,-151.0,0.000138,2]
[338354243,1726547442427,-151.0,0.000138,2]
[338354245,1726547442437,-151.0,0.000138,2]
[338354247,1726547442446,-151.0,0.000138,2]
[338354249,1726547442455,-383.682655,0.000138,2]
[338354251,1726547442465,-151.0,0.000138,2]
[338354253,1726547442474,-383.682655,0.000138,2]
[338354255,1726547442484,-151.0,0.000138,2]
[338354257,1726547442493,-154.302201,0.000138,2]
[338354259,1726547442502,-151.0,0.000138,2]
[338354261,1726547442513,-312736.592778,0.000138,2]
[338354262,1726547442522,-151.0,0.000138,2]
[338354264,1726547442531,-289.51391,0.000138,2]
[338354266,1726547442541,-355.115025,0.000138,2]
[338354268,1726547442551,-355.115025,0.000138,2]
[338354270,1726547442561,-527.284761,0.000138,2]
[338354273,1726547442571,-527.284761,0.000138,2]
[338354274,1726547442580,-151.0,0.000138,2]
[338354276,1726547442590,-232.100643,0.000138,2]
[338354278,1726547442600,-210.981478,0.000138,2]
[338354280,1726547442610,-210.981478,0.000138,2]
[338354282,1726547442620,-210.981478,0.000138,2]
[338354285,1726547442630,-210.981478,0.000138,2]
[338354287,1726547442639,-151.0,0.000138,2]
[338354288,1726547442648,-151.0,0.000138,2]
[338354291,1726547442659,-295.039066,0.000138,2]
[338354292,1726547442669,-151.0,0.000138,2]
[338354295,1726547442679,-295.039066,0.000138,2]
[338354297,1726547442689,-151.0,0.000138,2]
[338354299,1726547442698,-151.0,0.000138,2]
[338354301,1726547442707,-151.0,0.000138,2]
[338354303,1726547442717,-151.0,0.000138,2]
[338354305,1726547442726,-708.50399,0.000138,2]
[338354307,1726547442737,-708.50399,0.000138,2]
[338354309,1726547442747,-708.50399,0.000138,2]
[338354311,1726547442759,-708.50399,0.000138,2]
[338354313,1726547442769,-737.6,0.00013843,2]
[338354314,1726547442779,-328.0,0.00013866,2]
[338354315,1726547442788,-150.0,0.00013873,2]
[338354316,1726547442798,-8451.3148257,0.00013882,2]
[338354317,1726547442808,-907.72499806,0.0001389,7]
[338354318,1726547442817,-1013.0,0.00013895,2]
[338354319,1726547442827,-151.0,0.000139,2]
[338354320,1726547442836,-151.0,0.000139,2]
[338354321,1726547442846,-151.0,0.000139,2]
[338354322,1726547442856,-151.0,0.000139,2]
[338354323,1726547442865,-151.0,0.000139,2]
[338354324,1726547442875,-151.0,0.000139,2]
[338354325,1726547442885,-151.405872,0.000139,2]
[338354326,1726547442894,-151.0,0.000139,2]
[338354327,1726547442904,-151.0,0.000139,2]
[338354328,1726547442914,-151.0,0.000139,2]
[338354329,1726547442923,-151.0,0.000139,2]
[338354330,1726547442933,-151.266735,0.000139,2]
[338354332,1726547442942,-151.0,0.000139,2]
[338354334,1726547442952,-151.0,0.000139,2]
[338354336,1726547442961,-1000.0,0.000139,2]
[338354338,1726547442970,-1000.0,0.000139,2]
[338354340,1726547442982,-1000.0,0.000139,2]
[338354342,1726547442991,-1000.0,0.000139,2]
[338354344,1726547443001,-1000.0,0.000139,2]
[338354346,1726547443011,-1000.0,0.000139,2]
[338354348,1726547443020,-1000.0,0.000139,2]
[338354350,1726547443030,-1000.0,0.000139,2]
[338354352,1726547443040,-1000.0,0.000139,2]
[338354354,1726547443049,-1000.0,0.000139,2]
[338354356,1726547443059,-1000.0,0.000139,2]
[338354358,1726547443069,-1000.0,0.000139,2]
[338354360,1726547443078,-1000.0,0.000139,2]
[338354362,1726547443088,-1000.0,0.000139,2]
[338354364,1726547443097,-1000.0,0.000139,2]
[338354366,1726547443106,-1000.0,0.000139,2]
[338354368,1726547443116,-1000.0,0.000139,2]
[338354370,1726547443126,-1000.0,0.000139,2]
[338354372,1726547443135,-1000.0,0.000139,2]
[338354374,1726547443145,-1000.0,0.000139,2]
[338354376,1726547443154,-1000.0,0.000139,2]
[338354378,1726547443163,-1000.0,0.000139,2]
[338354380,1726547443173,-1000.0,0.000139,2]
[338354382,1726547443183,-1000.0,0.000139,2]
[338354384,1726547443193,-1000.0,0.000139,2]
[338354386,1726547443203,-1000.0,0.000139,2]
[338354388,1726547443212,-1000.0,0.000139,2]
[338354390,1726547443221,-1000.0,0.000139,2]
[338354392,1726547443231,-1000.0,0.000139,2]
[338354394,1726547443240,-1000.0,0.000139,2]
[338354396,1726547443251,-1000.0,0.000139,2]
[338354398,1726547443260,-1000.0,0.000139,2]
[338354400,1726547443270,-1000.0,0.000139,2]
[338354402,1726547443280,-1000.0,0.000139,2]
[338354404,1726547443289,-1000.0,0.000139,2]
[338354406,1726547443298,-1000.0,0.000139,2]
[338354408,1726547443308,-1000.0,0.000139,2]
[338354410,1726547443318,-1000.0,0.000139,2]
[338354412,1726547443327,-1000.0,0.000139,2]
[338354414,1726547443341,-1000.0,0.000139,2]
[338354416,1726547443352,-1000.0,0.000139,2]
[338354418,1726547443362,-1000.0,0.000139,2]
[338354420,1726547443373,-1000.0,0.000139,2]
[338354422,1726547443383,-1000.0,0.000139,2]
[338354424,1726547443393,-1000.0,0.000139,2]
[338354426,1726547443402,-1000.0,0.000139,2]
[338354428,1726547443413,-1000.0,0.000139,2]
[338354430,1726547443423,-1000.0,0.000139,2]
[338354432,1726547443432,-1000.0,0.000139,2]
[338354434,1726547443441,-1000.0,0.000139,2]
[338354436,1726547443451,-1000.0,0.000139,2]
[338354438,1726547443459,-1000.0,0.000139,2]
[338354440,1726547443469,-1000.0,0.000139,2]
[338354442,1726547443478,-1000.0,0.000139,2]
[338354444,1726547443487,-1000.0,0.000139,2]
[338354446,1726547443497,-592.0,0.000139,2]
[338354448,1726547443508,-151.0,0.000139,2]
[338354450,1726547443518,-151.0,0.000139,2]
[338354452,1726547443528,-193.920851,0.000139,2]
[338354454,1726547443537,-193.920851,0.000139,2]
[338354457,1726547443547,-193.920851,0.000139,2]
[338354459,1726547443557,-193.920851,0.000139,2]
[338354461,1726547443567,-151.0,0.000139,2]
[338354463,1726547443575,-151.0,0.000139,2]
[338354465,1726547443585,-151.0,0.000139,2]
[338354467,1726547443594,-151.0,0.000139,2]
[338354469,1726547443603,-260.868776,0.000139,2]
[338354471,1726547443613,-260.868776,0.000139,2]
[338354473,1726547443623,-151.0,0.000139,2]
[338354475,1726547443632,-151.0,0.000139,2]
[338354477,1726547443641,-260.868776,0.000139,2]
[338354479,1726547443651,-260.868776,0.000139,2]
[338354481,1726547443660,-151.0,0.000139,2]
[338354483,1726547443669,-154.420773,0.000139,2]
[338354485,1726547443678,-151.0,0.000139,2]
[338354487,1726547443688,-151.0,0.000139,2]
[338354489,1726547443697,-220.61793,0.000139,2]
[338354491,1726547443706,-151.0,0.000139,2]
[338354493,1726547443716,-151.0,0.000139,2]
[338354495,1726547443725,-151.0,0.000139,2]
[338354497,1726547443735,-151.0,0.000139,2]
[338354499,1726547443745,-151.0,0.000139,2]
[338354501,1726547443755,-151.0,0.000139,2]
[338354503,1726547443764,-151.0,0.000139,2]
[338354505,1726547443774,-151.0,0.000139,2]
[338354507,1726547443784,-398.937309,0.000139,2]
[338354509,1726547443794,-398.937309,0.000139,2]
[338354510,1726547443803,-398.937309,0.000139,2]
[338354511,1726547443813,-398.937309,0.000139,2]
[338354512,1726547443822,-505.219601,0.000139,2]
[338354513,1726547443832,-505.219601,0.000139,2]
[338354514,1726547443841,-505.219601,0.000139,2]
[338354515,1726547443851,-505.219601,0.000139,2]
[338354516,1726547443861,-294.044032,0.000139,2]
[338354517,1726547443871,-294.044032,0.000139,2]
[338354518,1726547443882,-294.044032,0.000139,2]
[338354519,1726547443891,-294.044032,0.000139,2]
[338354520,1726547443901,-151.0,0.000139,2]
[338354521,1726547443911,-151.0,0.000139,2]
[338354522,1726547443920,-151.0,0.000139,2]
[338354523,1726547443930,-151.0,0.000139,2]
[338354524,1726547443939,-177.888848,0.000139,2]
[338354525,1726547443949,-177.888848,0.000139,2]
[338354526,1726547443959,-177.888848,0.000139,2]
[338354527,1726547443968,-177.888848,0.000139,2]
[338354528,1726547443978,-152.129625,0.000139,2]
[338354529,1726547443987,-151.0,0.000139,2]
[338354530,1726547443996,-151.0,0.000139,2]
[338354531,1726547444006,-218.596602,0.000139,2]
[338354532,1726547444017,-1226.630838,0.000139,2]
[338354533,1726547444026,-1226.630838,0.000139,2]
[338354534,1726547444035,-1226.630838,0.000139,2]
[338354535,1726547444044,-1226.630838,0.000139,2]
[338354536,1726547444054,-154.197082,0.000139,2]
[338354537,1726547444063,-151.0,0.000139,2]
[338354538,1726547444072,-151.0,0.000139,2]
[338354539,1726547444081,-151.0,0.000139,2]
[338354540,1726547444090,-152.779693,0.000139,2]
[338354541,1726547444099,-157.646678,0.000139,2]
[338354542,1726547444109,-524.65391,0.000139,2]
[338354543,1726547444118,-524.65391,0.000139,2]
[338354544,1726547444127,-524.65391,0.000139,2]
[338354545,1726547444137,-524.65391,0.000139,2]
[338354546,1726547444147,-151.0,0.000139,2]
[338354547,1726547444156,-169.977272,0.000139,2]
[338354548,1726547444166,-151.0,0.000139,2]
[338354549,1726547444176,-151.0,0.000139,2]
[338354550,1726547444185,-256.603943,0.000139,2]
[338354551,1726547444195,-256.603943,0.000139,2]
[338354552,1726547444205,-151.0,0.000139,2]
[338354553,1726547444214,-151.0,0.000139,2]
[338354554,1726547444223,-256.603943,0.000139,2]
[338354555,1726547444232,-256.603943,0.000139,2]
[338354556,1726547444242,-151.0,0.000139,2]
[338354557,1726547444251,-151.0,0.000139,2]
[338354558,1726547444261,-151.0,0.000139,2]
[338354559,1726547444270,-151.0,0.000139,2]
[338354560,1726547444279,-151.0,0.000139,2]
[338354561,1726547444288,-151.0,0.000139,2]
[338354562,1726547444298,-151.0,0.000139,2]
[338354563,1726547444307,-151.0,0.000139,2]
[338354564,1726547444316,-151.0,0.000139,2]
[338354565,1726547444326,-151.0,0.000139,2]
[338354566,1726547444335,-151.0,0.000139,2]
[338354567,1726547444345,-295.387309,0.000139,2]
[338354568,1726547444355,-151.0,0.000139,2]
[338354569,1726547444366,-151.0,0.000139,2]
[338354570,1726547444375,-151.0,0.000139,2]
[338354571,1726547444384,-151.0,0.000139,2]
[338354572,1726547444394,-383.682655,0.000139,2]
[338354573,1726547444403,-383.682655,0.000139,2]
[338354574,1726547444412,-151.0,0.000139,2]
[338354575,1726547444422,-151.0,0.000139,2]
[338354576,1726547444431,-383.682655,0.000139,2]
[338354577,1726547444442,-383.682655,0.000139,2]
[338354578,1726547444451,-176.923161,0.000139,2]
[338354579,1726547444584,-300.0,0.000139,5]
[338354580,1726547444602,-151.0,0.000139,2]
[338354581,1726547444611,-197.102437,0.000139,2]